[Event "Early-Titled-Tuesday-Blitz-February-13-2024"]
[Site "Chess.com"]
[Date "2024.02.13"]
[Round "9"]
[White "kakarot_001"]
[Black "kushagramohan"]
[Result "1-0"]
[WhiteElo "2670"]
[BlackElo "2823"]
[TimeControl "180+1"]
[EndTime "9:44:30 PST"]
[Termination "kakarot_001 won by resignation"]

1. d4 {[%clk 0:02:59.8]} 1... Nf6 {[%clk 0:02:48]} 2. Nf3 {[%clk 0:02:51.3]}
2... g6 {[%clk 0:02:46.5]} 3. Bg5 {[%clk 0:02:48.5]} 3... Bg7 {[%clk 0:02:46.7]}
4. Bxf6 {[%clk 0:02:48.5]} 4... Bxf6 {[%clk 0:02:46.4]} 5. e4 {[%clk 0:02:48.8]}
5... O-O {[%clk 0:02:45.1]} 6. Nc3 {[%clk 0:02:49.4]} 6... c5 {[%clk 0:02:44.8]}
7. d5 {[%clk 0:02:34.3]} 7... d6 {[%clk 0:02:44.5]} 8. Be2 {[%clk 0:02:32]} 8...
Bg7 {[%clk 0:02:44.7]} 9. O-O {[%clk 0:02:32.5]} 9... a6 {[%clk 0:02:45.2]} 10.
a4 {[%clk 0:02:31.8]} 10... Nd7 {[%clk 0:02:45.6]} 11. Nd2 {[%clk 0:02:31.3]}
11... Nf6 {[%clk 0:02:45.9]} 12. Nc4 {[%clk 0:02:31.1]} 12... b6 {[%clk
0:02:44.4]} 13. e5 {[%clk 0:02:26.6]} 13... dxe5 {[%clk 0:02:39.9]} 14. Nxe5
{[%clk 0:02:27.5]} 14... Bb7 {[%clk 0:02:40.5]} 15. Bf3 {[%clk 0:02:23.4]} 15...
Qc7 {[%clk 0:02:36.4]} 16. Nc6 {[%clk 0:02:21.7]} 16... Qd6 {[%clk 0:02:10.5]}
17. Qe2 {[%clk 0:02:13.2]} 17... Rfe8 {[%clk 0:02:08.1]} 18. Rad1 {[%clk
0:02:13.3]} 18... Nd7 {[%clk 0:01:52.1]} 19. Ne4 {[%clk 0:02:12.6]} 19... Qc7
{[%clk 0:01:51.8]} 20. Nxe7+ {[%clk 0:02:12.4]} 20... Kh8 {[%clk 0:01:48.6]} 21.
d6 {[%clk 0:02:11.3]} 21... Qd8 {[%clk 0:01:46.2]} 22. Ng5 {[%clk 0:02:11.4]}
1-0

[Event "Early-Titled-Tuesday-Blitz-February-13-2024"]
[Site "Chess.com"]
[Date "2024.02.13"]
[Round "9"]
[White "vi_pranav"]
[Black "Adar_07"]
[Result "1-0"]
[WhiteElo "3038"]
[BlackElo "2806"]
[TimeControl "180+1"]
[EndTime "9:44:33 PST"]
[Termination "vi_pranav won by resignation"]

1. e4 {[%clk 0:03:00.9]} 1... c6 {[%clk 0:02:58.4]} 2. d4 {[%clk 0:03:00.2]}
2... d5 {[%clk 0:02:59.3]} 3. e5 {[%clk 0:03:00.9]} 3... Bf5 {[%clk 0:02:58.5]}
4. Nf3 {[%clk 0:03:01.5]} 4... e6 {[%clk 0:02:58.5]} 5. Be2 {[%clk 0:03:01.6]}
5... Ne7 {[%clk 0:02:57.9]} 6. O-O {[%clk 0:03:01.3]} 6... h6 {[%clk 0:02:58.2]}
7. c3 {[%clk 0:03:01.5]} 7... g5 {[%clk 0:02:58.2]} 8. Na3 {[%clk 0:03:01.2]}
8... Ng6 {[%clk 0:02:57.3]} 9. Nc2 {[%clk 0:03:00.9]} 9... g4 {[%clk 0:02:56.6]}
10. Nfe1 {[%clk 0:02:59]} 10... h5 {[%clk 0:02:56.3]} 11. Bd3 {[%clk 0:02:59.3]}
11... Bxd3 {[%clk 0:02:54.8]} 12. Nxd3 {[%clk 0:03:00.2]} 12... Nd7 {[%clk
0:02:54.5]} 13. f3 {[%clk 0:02:57.4]} 13... f5 {[%clk 0:02:31]} 14. exf6 {[%clk
0:02:42.5]} 14... Nxf6 {[%clk 0:02:30.9]} 15. Bg5 {[%clk 0:02:41.5]} 15... Be7
{[%clk 0:02:30.3]} 16. Bxf6 {[%clk 0:02:40.5]} 16... Bxf6 {[%clk 0:02:30.5]} 17.
fxg4 {[%clk 0:02:41.4]} 17... hxg4 {[%clk 0:02:12.5]} 18. Qxg4 {[%clk
0:02:38.7]} 18... Nf8 {[%clk 0:02:13]} 19. Rae1 {[%clk 0:02:34.1]} 19... Be7
{[%clk 0:02:06.1]} 20. Qg7 {[%clk 0:02:28.4]} 20... Rh4 {[%clk 0:01:49.3]} 21.
Ne5 {[%clk 0:02:25.3]} 21... Qd6 {[%clk 0:01:46.4]} 22. Rxf8+ {[%clk 0:02:08.5]}
22... Bxf8 {[%clk 0:01:45.9]} 23. Qf7+ {[%clk 0:02:09]} 23... Kd8 {[%clk
0:01:46]} 24. Qxb7 {[%clk 0:02:09.9]} 1-0

[Event "Early-Titled-Tuesday-Blitz-February-13-2024"]
[Site "Chess.com"]
[Date "2024.02.13"]
[Round "9"]
[White "maciek_92"]
[Black "MKlose11"]
[Result "1-0"]
[WhiteElo "2815"]
[BlackElo "2644"]
[TimeControl "180+1"]
[EndTime "9:45:29 PST"]
[Termination "maciek_92 won by resignation"]

1. e4 {[%clk 0:03:00.9]} 1... e6 {[%clk 0:02:58]} 2. d3 {[%clk 0:03:00.6]} 2...
d5 {[%clk 0:02:56.6]} 3. Nd2 {[%clk 0:03:01]} 3... Nf6 {[%clk 0:02:54.9]} 4.
Ngf3 {[%clk 0:03:00.8]} 4... Be7 {[%clk 0:02:54.4]} 5. g3 {[%clk 0:02:59.9]}
5... b6 {[%clk 0:02:54.4]} 6. Bg2 {[%clk 0:03:00.4]} 6... O-O {[%clk 0:02:54]}
7. O-O {[%clk 0:03:00.2]} 7... dxe4 {[%clk 0:02:53.6]} 8. dxe4 {[%clk
0:02:59.1]} 8... Ba6 {[%clk 0:02:53.6]} 9. Re1 {[%clk 0:02:59]} 9... Bb7 {[%clk
0:02:39.7]} 10. e5 {[%clk 0:02:56.3]} 10... Nfd7 {[%clk 0:02:35.1]} 11. Qe2
{[%clk 0:02:51]} 11... h6 {[%clk 0:02:34]} 12. Nf1 {[%clk 0:02:43]} 12... Nc6
{[%clk 0:02:29.3]} 13. h4 {[%clk 0:02:35.8]} 13... Qc8 {[%clk 0:02:29.2]} 14.
N1h2 {[%clk 0:02:34.2]} 14... Rd8 {[%clk 0:02:25.7]} 15. Ng4 {[%clk 0:02:25.7]}
15... Nf8 {[%clk 0:02:22.3]} 16. Bxh6 {[%clk 0:01:59.3]} 16... gxh6 {[%clk
0:02:19.3]} 17. Qe3 {[%clk 0:02:00]} 17... Nd4 {[%clk 0:01:43.6]} 18. Nxd4
{[%clk 0:01:50]} 18... Bxg2 {[%clk 0:01:42.9]} 19. Kxg2 {[%clk 0:01:31.8]} 19...
h5 {[%clk 0:01:42.8]} 20. Nf6+ {[%clk 0:01:28.3]} 20... Bxf6 {[%clk 0:01:31.1]}
21. exf6 {[%clk 0:01:29.2]} 21... Qb7+ {[%clk 0:01:31.2]} 22. Kg1 {[%clk
0:01:17.1]} 1-0

[Event "Early-Titled-Tuesday-Blitz-February-13-2024"]
[Site "Chess.com"]
[Date "2024.02.13"]
[Round "9"]
[White "Lion_DL"]
[Black "Goryachkina"]
[Result "0-1"]
[WhiteElo "2490"]
[BlackElo "2702"]
[TimeControl "180+1"]
[EndTime "9:45:38 PST"]
[Termination "Goryachkina won by resignation"]

1. d4 {[%clk 0:03:00.9]} 1... Nf6 {[%clk 0:02:59.6]} 2. c4 {[%clk 0:03:01.4]}
2... e6 {[%clk 0:02:59.8]} 3. Nf3 {[%clk 0:03:01.3]} 3... d5 {[%clk 0:02:59.6]}
4. cxd5 {[%clk 0:03:01.5]} 4... exd5 {[%clk 0:02:59.7]} 5. Nc3 {[%clk
0:03:02.2]} 5... c6 {[%clk 0:02:59.7]} 6. Qc2 {[%clk 0:03:02]} 6... g6 {[%clk
0:02:54.8]} 7. Bg5 {[%clk 0:03:02]} 7... Be7 {[%clk 0:02:42.2]} 8. e3 {[%clk
0:02:57.8]} 8... Bf5 {[%clk 0:02:42]} 9. Bd3 {[%clk 0:02:41]} 9... Bxd3 {[%clk
0:02:41.6]} 10. Qxd3 {[%clk 0:02:41.9]} 10... Nbd7 {[%clk 0:02:41.6]} 11. O-O
{[%clk 0:02:40.2]} 11... O-O {[%clk 0:02:41.2]} 12. Rab1 {[%clk 0:02:36.5]}
12... a5 {[%clk 0:02:39.9]} 13. Nd2 {[%clk 0:02:30]} 13... Re8 {[%clk
0:02:38.7]} 14. f3 {[%clk 0:02:24.9]} 14... c5 {[%clk 0:02:10.3]} 15. dxc5
{[%clk 0:02:07.7]} 15... Nxc5 {[%clk 0:02:09]} 16. Qd4 {[%clk 0:02:03.6]} 16...
Ne6 {[%clk 0:02:08.9]} 17. Bxf6 {[%clk 0:01:23.6]} 17... Nxd4 {[%clk 0:02:05.3]}
18. Bxd4 {[%clk 0:01:24.5]} 18... Rc8 {[%clk 0:01:58.5]} 19. Nb3 {[%clk
0:01:17]} 19... b6 {[%clk 0:01:48.4]} 20. e4 {[%clk 0:00:57.4]} 20... dxe4
{[%clk 0:01:42.9]} 21. Nxe4 {[%clk 0:00:56.2]} 21... a4 {[%clk 0:01:42.9]} 22.
Nbd2 {[%clk 0:00:48.8]} 22... Qxd4+ {[%clk 0:01:42.4]} 0-1

[Event "Early-Titled-Tuesday-Blitz-February-13-2024"]
[Site "Chess.com"]
[Date "2024.02.13"]
[Round "9"]
[White "Nouali_Mohamed"]
[Black "jcibarra"]
[Result "0-1"]
[WhiteElo "2579"]
[BlackElo "2944"]
[TimeControl "180+1"]
[EndTime "9:46:11 PST"]
[Termination "jcibarra won on time"]

1. e4 {[%clk 0:03:00.4]} 1... c5 {[%clk 0:02:59.9]} 2. Nf3 {[%clk 0:02:59.7]}
2... e6 {[%clk 0:03:00.5]} 3. d4 {[%clk 0:02:59.8]} 3... cxd4 {[%clk 0:03:01.4]}
4. Nxd4 {[%clk 0:03:00.1]} 4... Bc5 {[%clk 0:03:02]} 5. Nb3 {[%clk 0:02:59]}
5... Bb6 {[%clk 0:03:02.7]} 6. a4 {[%clk 0:02:42.1]} 6... Nc6 {[%clk 0:03:02.3]}
7. Na3 {[%clk 0:02:33.7]} 7... d5 {[%clk 0:03:01.8]} 8. exd5 {[%clk 0:01:40.2]}
8... exd5 {[%clk 0:03:02.7]} 9. Nb5 {[%clk 0:01:30.6]} 9... Nf6 {[%clk 0:03:03]}
10. Be2 {[%clk 0:01:12.1]} 10... Ne4 {[%clk 0:02:48.6]} 11. O-O {[%clk 0:01:01]}
11... O-O {[%clk 0:02:48.3]} 12. Bf3 {[%clk 0:00:51]} 12... Ne5 {[%clk
0:02:39.6]} 13. Bf4 {[%clk 0:00:42.8]} 13... Ng6 {[%clk 0:02:36.7]} 14. Bg3
{[%clk 0:00:31.3]} 14... a6 {[%clk 0:02:35.7]} 15. N5d4 {[%clk 0:00:30.8]} 15...
f5 {[%clk 0:02:29]} 16. h3 {[%clk 0:00:13.2]} 16... f4 {[%clk 0:02:20]} 17. Bh2
{[%clk 0:00:13.1]} 17... Nh4 {[%clk 0:02:20.8]} 18. Kh1 {[%clk 0:00:11.5]} 18...
Qg5 {[%clk 0:02:19.3]} 19. c3 {[%clk 0:00:09.8]} 19... Bd7 {[%clk 0:02:15.8]}
20. a5 {[%clk 0:00:09.3]} 20... Bc7 {[%clk 0:02:12.8]} 21. Ne2 {[%clk
0:00:08.1]} 21... Rae8 {[%clk 0:02:03.1]} 22. Nbd4 {[%clk 0:00:08]} 22... Rf6
{[%clk 0:02:00.2]} 23. Ng1 {[%clk 0:00:05.1]} 23... Rg6 {[%clk 0:01:58.5]} 0-1

[Event "Early-Titled-Tuesday-Blitz-February-13-2024"]
[Site "Chess.com"]
[Date "2024.02.13"]
[Round "9"]
[White "InitiatingASC"]
[Black "SpongeBob_03"]
[Result "1-0"]
[WhiteElo "2384"]
[BlackElo "2216"]
[TimeControl "180+1"]
[EndTime "9:46:14 PST"]
[Termination "InitiatingASC won by resignation"]

1. Nf3 {[%clk 0:02:54.3]} 1... Nf6 {[%clk 0:02:57.5]} 2. b3 {[%clk 0:02:54]}
2... b5 {[%clk 0:02:57]} 3. Bb2 {[%clk 0:02:53.6]} 3... Bb7 {[%clk 0:02:57.9]}
4. e3 {[%clk 0:02:52.4]} 4... e6 {[%clk 0:02:57.8]} 5. Bxb5 {[%clk 0:02:51.6]}
5... a6 {[%clk 0:02:58.7]} 6. Be2 {[%clk 0:02:51.8]} 6... Be7 {[%clk 0:02:58.6]}
7. c4 {[%clk 0:02:50.9]} 7... d6 {[%clk 0:02:59.1]} 8. d3 {[%clk 0:02:50.7]}
8... Nbd7 {[%clk 0:02:59.7]} 9. Nbd2 {[%clk 0:02:50.6]} 9... Kf8 {[%clk
0:03:00.1]} 10. O-O {[%clk 0:02:49.2]} 10... h6 {[%clk 0:03:00.1]} 11. a3 {[%clk
0:02:47.1]} 11... Kg8 {[%clk 0:03:00]} 12. b4 {[%clk 0:02:47.8]} 12... Kh7
{[%clk 0:03:00.9]} 13. e4 {[%clk 0:02:41]} 13... Rg8 {[%clk 0:02:57.8]} 14. Qc2
{[%clk 0:02:26.8]} 14... g5 {[%clk 0:02:45.2]} 15. d4 {[%clk 0:02:23.3]} 15...
Kh8 {[%clk 0:02:35.2]} 16. e5 {[%clk 0:02:16.3]} 16... dxe5 {[%clk 0:02:30.9]}
17. Nxe5 {[%clk 0:02:08.5]} 17... Nxe5 {[%clk 0:02:30]} 18. dxe5 {[%clk
0:02:08.8]} 18... Nh7 {[%clk 0:02:25.3]} 19. Rad1 {[%clk 0:02:05.8]} 19... Qe8
{[%clk 0:02:22.5]} 20. Bh5 {[%clk 0:02:03.2]} 20... Nf8 {[%clk 0:02:19.5]} 21.
Ne4 {[%clk 0:01:59.7]} 21... Ng6 {[%clk 0:02:17.6]} 22. Nd6 {[%clk 0:01:56.4]}
22... cxd6 {[%clk 0:02:02.1]} 23. exd6+ {[%clk 0:01:56.1]} 23... f6 {[%clk
0:02:02.6]} 24. dxe7 {[%clk 0:01:55.3]} 24... Kh7 {[%clk 0:01:48.3]} 25. Bxf6
{[%clk 0:01:49.9]} 25... Rc8 {[%clk 0:01:37.9]} 26. Rd8 {[%clk 0:01:42.5]} 26...
Qc6 {[%clk 0:01:35.5]} 27. Bf3 {[%clk 0:01:36.5]} 27... Qc7 {[%clk 0:01:25.8]}
28. Bxb7 {[%clk 0:01:22.4]} 28... Qxb7 {[%clk 0:01:15.6]} 29. Rfd1 {[%clk
0:01:21]} 29... h5 {[%clk 0:01:09.3]} 30. R1d7 {[%clk 0:01:10.3]} 1-0

[Event "Early-Titled-Tuesday-Blitz-February-13-2024"]
[Site "Chess.com"]
[Date "2024.02.13"]
[Round "9"]
[White "miraitrunks"]
[Black "agvania123"]
[Result "0-1"]
[WhiteElo "2185"]
[BlackElo "2371"]
[TimeControl "180+1"]
[EndTime "9:46:29 PST"]
[Termination "agvania123 won by resignation"]

1. e4 {[%clk 0:02:59.7]} 1... d5 {[%clk 0:02:54.1]} 2. Nc3 {[%clk 0:02:59.2]}
2... dxe4 {[%clk 0:02:52.8]} 3. Nxe4 {[%clk 0:03:00.1]} 3... c6 {[%clk
0:02:51.6]} 4. Bc4 {[%clk 0:02:59.4]} 4... Nf6 {[%clk 0:02:42.1]} 5. Nxf6+
{[%clk 0:02:57.4]} 5... exf6 {[%clk 0:02:43]} 6. Ne2 {[%clk 0:02:56]} 6... Bd6
{[%clk 0:02:43.3]} 7. O-O {[%clk 0:02:55.6]} 7... O-O {[%clk 0:02:43.8]} 8. d4
{[%clk 0:02:55.3]} 8... Bg4 {[%clk 0:02:40.7]} 9. f3 {[%clk 0:02:55.2]} 9... Bh5
{[%clk 0:02:40.5]} 10. Nf4 {[%clk 0:02:54.2]} 10... Bg6 {[%clk 0:02:38.8]} 11.
Nxg6 {[%clk 0:02:51.7]} 11... hxg6 {[%clk 0:02:39.7]} 12. Qd3 {[%clk 0:02:52]}
12... f5 {[%clk 0:02:31.9]} 13. a3 {[%clk 0:02:46.3]} 13... Nd7 {[%clk
0:02:30.7]} 14. b4 {[%clk 0:02:46.1]} 14... a5 {[%clk 0:02:25.8]} 15. b5 {[%clk
0:02:44.7]} 15... c5 {[%clk 0:02:23.1]} 16. Bb2 {[%clk 0:02:41.5]} 16... cxd4
{[%clk 0:02:21.2]} 17. Bxd4 {[%clk 0:02:38.8]} 17... Ne5 {[%clk 0:02:10.9]} 18.
Bxe5 {[%clk 0:02:27.9]} 18... Bxe5 {[%clk 0:02:11.8]} 19. Qxd8 {[%clk
0:02:22.3]} 19... Rfxd8 {[%clk 0:02:12.2]} 20. Rad1 {[%clk 0:02:22.1]} 20...
Rac8 {[%clk 0:02:11.5]} 21. Bb3 {[%clk 0:02:20.6]} 21... b6 {[%clk 0:02:10.2]}
22. Rfe1 {[%clk 0:02:14.7]} 22... Bd4+ {[%clk 0:02:02.7]} 23. Kf1 {[%clk
0:02:10.2]} 23... Bc5 {[%clk 0:02:02.9]} 24. Ke2 {[%clk 0:01:44.2]} 24... Kf8
{[%clk 0:01:59.2]} 25. Rxd8+ {[%clk 0:01:42.8]} 25... Rxd8 {[%clk 0:02:00.1]}
26. Rd1 {[%clk 0:01:42.7]} 26... Rxd1 {[%clk 0:01:55.1]} 27. Kxd1 {[%clk
0:01:42]} 27... Bxa3 {[%clk 0:01:55.8]} 28. Kd2 {[%clk 0:01:37.5]} 28... Ke7
{[%clk 0:01:54.3]} 29. Kd3 {[%clk 0:01:37.8]} 29... f6 {[%clk 0:01:53.4]} 30.
Kd4 {[%clk 0:01:38]} 30... Kd6 {[%clk 0:01:52.6]} 31. Bf7 {[%clk 0:01:37.3]}
31... Bc5+ {[%clk 0:01:51.8]} 32. Kc4 {[%clk 0:01:37.1]} 32... g5 {[%clk
0:01:52.1]} 33. Bg6 {[%clk 0:01:36.3]} 33... Ke5 {[%clk 0:01:52.1]} 34. Bh7
{[%clk 0:01:30.4]} 34... g4 {[%clk 0:01:50.1]} 35. fxg4 {[%clk 0:01:23.5]} 35...
fxg4 {[%clk 0:01:51]} 36. Bd3 {[%clk 0:01:13.8]} 36... f5 {[%clk 0:01:50]} 37.
Be2 {[%clk 0:01:13.7]} 37... g5 {[%clk 0:01:49.5]} 38. Bd1 {[%clk 0:01:13.3]}
38... Ke4 {[%clk 0:01:42.6]} 39. h3 {[%clk 0:01:09.7]} 39... gxh3 {[%clk
0:01:42.4]} 40. gxh3 {[%clk 0:01:10.6]} 40... f4 {[%clk 0:01:42.7]} 41. Be2
{[%clk 0:01:08.2]} 41... f3 {[%clk 0:01:41.9]} 42. Bd3+ {[%clk 0:01:08.3]} 42...
Ke3 {[%clk 0:01:41.1]} 43. Kd5 {[%clk 0:01:03.4]} 43... f2 {[%clk 0:01:40.5]}
0-1

[Event "Early-Titled-Tuesday-Blitz-February-13-2024"]
[Site "Chess.com"]
[Date "2024.02.13"]
[Round "9"]
[White "Slovineanu"]
[Black "Austen48"]
[Result "1-0"]
[WhiteElo "2405"]
[BlackElo "2228"]
[TimeControl "180+1"]
[EndTime "9:46:36 PST"]
[Termination "Slovineanu won by resignation"]

1. d4 {[%clk 0:02:57.2]} 1... Nf6 {[%clk 0:02:58.8]} 2. Nf3 {[%clk 0:02:57.1]}
2... e6 {[%clk 0:02:57.6]} 3. c4 {[%clk 0:02:56.7]} 3... Bb4+ {[%clk 0:02:55.6]}
4. Nbd2 {[%clk 0:02:56.3]} 4... O-O {[%clk 0:02:53.4]} 5. a3 {[%clk 0:02:56.6]}
5... Be7 {[%clk 0:02:50.1]} 6. e3 {[%clk 0:02:56.1]} 6... d6 {[%clk 0:02:50.7]}
7. Bd3 {[%clk 0:02:56.4]} 7... Nbd7 {[%clk 0:02:50.5]} 8. O-O {[%clk 0:02:52.2]}
8... e5 {[%clk 0:02:50.6]} 9. b3 {[%clk 0:02:52]} 9... Re8 {[%clk 0:02:49.2]}
10. Bb2 {[%clk 0:02:51.8]} 10... Bf8 {[%clk 0:02:49.4]} 11. dxe5 {[%clk
0:02:46.4]} 11... dxe5 {[%clk 0:02:47.5]} 12. Ne4 {[%clk 0:02:45]} 12... c6
{[%clk 0:02:43.5]} 13. Qc2 {[%clk 0:02:37.4]} 13... h6 {[%clk 0:02:38.8]} 14.
Rfd1 {[%clk 0:02:31.7]} 14... Nxe4 {[%clk 0:02:36.5]} 15. Bxe4 {[%clk
0:02:31.7]} 15... Qf6 {[%clk 0:02:28.7]} 16. b4 {[%clk 0:02:25.7]} 16... g6
{[%clk 0:02:20.2]} 17. c5 {[%clk 0:02:14.4]} 17... Bg7 {[%clk 0:02:06.7]} 18.
Rd2 {[%clk 0:02:13.6]} 18... Qe7 {[%clk 0:01:56.9]} 19. Rad1 {[%clk 0:02:09.8]}
19... Nf8 {[%clk 0:01:54.4]} 20. Rd6 {[%clk 0:01:55.4]} 20... Bg4 {[%clk
0:01:51]} 21. h3 {[%clk 0:01:54]} 21... Bxf3 {[%clk 0:01:47.7]} 22. Bxf3 {[%clk
0:01:53.4]} 22... Rad8 {[%clk 0:01:41.6]} 23. Be2 {[%clk 0:01:53.5]} 23... Rxd6
{[%clk 0:01:41]} 24. Rxd6 {[%clk 0:01:44.9]} 24... Rd8 {[%clk 0:01:38]} 25. Rxd8
{[%clk 0:01:44.4]} 25... Qxd8 {[%clk 0:01:37.6]} 26. Bc4 {[%clk 0:01:45]} 26...
Ne6 {[%clk 0:01:31.4]} 27. Bxe6 {[%clk 0:01:43.8]} 27... fxe6 {[%clk 0:01:30.3]}
28. Qxg6 {[%clk 0:01:39]} 28... Qd5 {[%clk 0:01:23.5]} 29. e4 {[%clk 0:01:28]}
29... Qd1+ {[%clk 0:01:01.6]} 30. Kh2 {[%clk 0:01:26.7]} 30... Kf8 {[%clk
0:00:47.2]} 31. Qxe6 {[%clk 0:01:26]} 31... Qe2 {[%clk 0:00:43.2]} 32. Bxe5
{[%clk 0:01:19.1]} 32... Bxe5+ {[%clk 0:00:40]} 33. Qxe5 {[%clk 0:01:19.1]}
33... Qxf2 {[%clk 0:00:40.4]} 34. Qf5+ {[%clk 0:01:19.2]} 34... Qxf5 {[%clk
0:00:40]} 35. exf5 {[%clk 0:01:19.6]} 35... Kf7 {[%clk 0:00:40.7]} 36. g4 {[%clk
0:01:20.1]} 36... Kf6 {[%clk 0:00:41.3]} 37. Kg3 {[%clk 0:01:20.5]} 1-0

[Event "Early-Titled-Tuesday-Blitz-February-13-2024"]
[Site "Chess.com"]
[Date "2024.02.13"]
[Round "9"]
[White "Hovik_Hayrapetyan"]
[Black "LiadCuba"]
[Result "1-0"]
[WhiteElo "2902"]
[BlackElo "2508"]
[TimeControl "180+1"]
[EndTime "9:46:38 PST"]
[Termination "Hovik_Hayrapetyan won by checkmate"]

1. d4 {[%clk 0:03:00.9]} 1... d5 {[%clk 0:03:00]} 2. c4 {[%clk 0:03:00.7]} 2...
e6 {[%clk 0:03:00.2]} 3. Nc3 {[%clk 0:03:00.8]} 3... Nf6 {[%clk 0:03:00.6]} 4.
Nf3 {[%clk 0:03:01.1]} 4... c5 {[%clk 0:03:00.6]} 5. cxd5 {[%clk 0:02:57.2]}
5... Nxd5 {[%clk 0:03:00.5]} 6. e4 {[%clk 0:02:52.5]} 6... Nxc3 {[%clk
0:03:00.5]} 7. bxc3 {[%clk 0:02:53.4]} 7... cxd4 {[%clk 0:03:01.2]} 8. cxd4
{[%clk 0:02:54.3]} 8... Bb4+ {[%clk 0:03:01.7]} 9. Bd2 {[%clk 0:02:54.9]} 9...
Bxd2+ {[%clk 0:03:02.6]} 10. Qxd2 {[%clk 0:02:55.8]} 10... O-O {[%clk
0:03:03.4]} 11. Bc4 {[%clk 0:02:49.9]} 11... Nd7 {[%clk 0:03:03.3]} 12. O-O
{[%clk 0:02:49.5]} 12... b6 {[%clk 0:03:00.8]} 13. Rfe1 {[%clk 0:02:46.6]} 13...
Bb7 {[%clk 0:02:59.3]} 14. Rad1 {[%clk 0:02:46.6]} 14... Rc8 {[%clk 0:02:59.5]}
15. Bb3 {[%clk 0:02:46.8]} 15... Re8 {[%clk 0:02:58.2]} 16. h3 {[%clk
0:02:39.4]} 16... h6 {[%clk 0:02:55.7]} 17. Qf4 {[%clk 0:02:36.7]} 17... Qc7
{[%clk 0:02:55.4]} 18. Qxc7 {[%clk 0:02:36.3]} 18... Rxc7 {[%clk 0:02:56.3]} 19.
d5 {[%clk 0:02:36.9]} 19... exd5 {[%clk 0:02:48.9]} 20. exd5 {[%clk 0:02:37.8]}
20... Rxe1+ {[%clk 0:02:48.8]} 21. Rxe1 {[%clk 0:02:38.7]} 21... Nf6 {[%clk
0:02:48.5]} 22. d6 {[%clk 0:02:32]} 22... Rd7 {[%clk 0:02:48.4]} 23. Ne5 {[%clk
0:02:25.8]} 23... Rxd6 {[%clk 0:02:45.9]} 24. Nxf7 {[%clk 0:02:23.8]} 24... Rd2
{[%clk 0:02:38.7]} 25. Nxh6+ {[%clk 0:02:19.9]} 25... Kh7 {[%clk 0:02:34.5]} 26.
Nf5 {[%clk 0:02:18.5]} 26... Ne4 {[%clk 0:02:28]} 27. f3 {[%clk 0:02:08.6]}
27... Nc3 {[%clk 0:01:48.1]} 28. Re7 {[%clk 0:01:59.5]} 28... Ne2+ {[%clk
0:01:22.2]} 29. Kh2 {[%clk 0:01:33.3]} 29... Bxf3 {[%clk 0:01:07.5]} 30. Rxg7+
{[%clk 0:01:31.4]} 30... Kh8 {[%clk 0:01:07.5]} 31. Rg8+ {[%clk 0:01:16.5]}
31... Kh7 {[%clk 0:01:07.6]} 32. Rg7+ {[%clk 0:01:14.9]} 32... Kh8 {[%clk
0:01:07.9]} 33. Rg6 {[%clk 0:01:10.9]} 33... Nf4 {[%clk 0:00:41.6]} 34. Rh6#
{[%clk 0:01:09.9]} 1-0

[Event "Early-Titled-Tuesday-Blitz-February-13-2024"]
[Site "Chess.com"]
[Date "2024.02.13"]
[Round "9"]
[White "JonaszBaum"]
[Black "RantomOpening"]
[Result "1-0"]
[WhiteElo "2649"]
[BlackElo "2481"]
[TimeControl "180+1"]
[EndTime "9:46:39 PST"]
[Termination "JonaszBaum won by checkmate"]

1. Nf3 {[%clk 0:03:00.9]} 1... e6 {[%clk 0:02:57.8]} 2. c4 {[%clk 0:02:59.8]}
2... d5 {[%clk 0:02:57.1]} 3. g3 {[%clk 0:02:57.9]} 3... c5 {[%clk 0:02:48]} 4.
Bg2 {[%clk 0:02:52]} 4... d4 {[%clk 0:02:45.9]} 5. e3 {[%clk 0:02:35.9]} 5...
Nf6 {[%clk 0:02:43.9]} 6. b4 {[%clk 0:02:33.8]} 6... dxe3 {[%clk 0:02:43]} 7.
fxe3 {[%clk 0:02:34.7]} 7... cxb4 {[%clk 0:02:36.8]} 8. d4 {[%clk 0:02:33.7]}
8... Be7 {[%clk 0:02:36.1]} 9. O-O {[%clk 0:02:32.7]} 9... Nc6 {[%clk
0:02:35.1]} 10. Nbd2 {[%clk 0:02:28.3]} 10... O-O {[%clk 0:02:29.7]} 11. Bb2
{[%clk 0:02:27.8]} 11... a5 {[%clk 0:02:29.6]} 12. Qe2 {[%clk 0:02:19.3]} 12...
a4 {[%clk 0:02:27.6]} 13. Rac1 {[%clk 0:02:18.3]} 13... b3 {[%clk 0:02:25.8]}
14. a3 {[%clk 0:02:15.7]} 14... e5 {[%clk 0:02:01.9]} 15. d5 {[%clk 0:02:11.7]}
15... Nb8 {[%clk 0:01:52.1]} 16. Nxe5 {[%clk 0:02:08.4]} 16... Nbd7 {[%clk
0:01:52.3]} 17. Ndf3 {[%clk 0:02:02.2]} 17... Nc5 {[%clk 0:01:52.3]} 18. Nd4
{[%clk 0:01:56]} 18... Bd6 {[%clk 0:01:41.6]} 19. Nb5 {[%clk 0:01:46.4]} 19...
Re8 {[%clk 0:01:15]} 20. Nxf7 {[%clk 0:01:18.7]} 20... Kxf7 {[%clk 0:01:11.5]}
21. Qh5+ {[%clk 0:01:14.1]} 21... Kg8 {[%clk 0:01:10.2]} 22. Bxf6 {[%clk
0:01:14.2]} 22... gxf6 {[%clk 0:01:08.5]} 23. Nxd6 {[%clk 0:01:14.7]} 23... Re7
{[%clk 0:00:56]} 24. Rxf6 {[%clk 0:01:05.8]} 24... Rg7 {[%clk 0:00:50.1]} 25.
Rcf1 {[%clk 0:01:02.2]} 25... Bd7 {[%clk 0:00:48.8]} 26. Rf7 {[%clk 0:00:57.8]}
26... Be8 {[%clk 0:00:38.9]} 27. Rf8# {[%clk 0:00:56.7]} 1-0